[Event "*** Titled Tuesday 3|2 Blitz"]
[Site "Chess.com"]
[Date "2017.03.07"]
[Round "1"]
[White "Jospem"]
[Black "PlotnikovPavel"]
[Result "1-0"]
[WhiteElo "2593"]
[BlackElo "2302"]
[TimeControl "180+2"]
[EndTime "13:08:48 PST"]
[Termination "Jospem won by checkmate"]

1. e4 {[%clk 0:03:02]} 1... e6 {[%clk 0:02:59.9]} 2. d4 {[%clk 0:03:02.2]} 2...
d5 {[%clk 0:03:00.9]} 3. Nc3 {[%clk 0:03:03.7]} 3... Nf6 {[%clk 0:03:01.6]} 4.
e5 {[%clk 0:03:03.9]} 4... Ng8 {[%clk 0:03:01.6]} 5. f4 {[%clk 0:03:04.8]} 5...
c5 {[%clk 0:03:02.8]} 6. Nf3 {[%clk 0:03:05.8]} 6... Nc6 {[%clk 0:03:04]} 7. Be3
{[%clk 0:03:02.2]} 7... Nh6 {[%clk 0:03:00.7]} 8. dxc5 {[%clk 0:02:56.7]} 8...
Qa5 {[%clk 0:02:52.1]} 9. a3 {[%clk 0:02:17.4]} 9... Nf5 {[%clk 0:02:47]} 10.
Bd2 {[%clk 0:01:40.7]} 10... Qxc5 {[%clk 0:02:44.1]} 11. Bd3 {[%clk 0:01:36.3]}
11... h5 {[%clk 0:02:26.7]} 12. b4 {[%clk 0:01:36.1]} 12... Qb6 {[%clk
0:02:26.9]} 13. Qe2 {[%clk 0:01:33.6]} 13... g6 {[%clk 0:02:20.5]} 14. Na4
{[%clk 0:01:29.5]} 14... Qc7 {[%clk 0:02:19.9]} 15. c3 {[%clk 0:01:30.6]} 15...
Bd7 {[%clk 0:02:17]} 16. Nb2 {[%clk 0:01:15.5]} 16... Be7 {[%clk 0:02:11.5]} 17.
O-O {[%clk 0:01:16.7]} 17... a5 {[%clk 0:02:06.4]} 18. b5 {[%clk 0:01:16.8]}
18... Na7 {[%clk 0:02:06.5]} 19. Kh1 {[%clk 0:01:02.2]} 19... h4 {[%clk
0:02:06.2]} 20. a4 {[%clk 0:00:53]} 20... Nc8 {[%clk 0:01:48.7]} 21. c4 {[%clk
0:00:46.5]} 21... Nb6 {[%clk 0:01:48.9]} 22. Bxf5 {[%clk 0:00:42.9]} 22... gxf5
{[%clk 0:01:49.4]} 23. cxd5 {[%clk 0:00:44.3]} 23... Nxd5 {[%clk 0:01:49.9]} 24.
Rac1 {[%clk 0:00:45.9]} 24... Qd8 {[%clk 0:01:47]} 25. Nc4 {[%clk 0:00:46.5]}
25... b6 {[%clk 0:01:35.1]} 26. Ng5 {[%clk 0:00:47.5]} 26... Bxg5 {[%clk
0:01:32]} 27. fxg5 {[%clk 0:00:48.6]} 27... h3 {[%clk 0:01:31.5]} 28. Nd6+
{[%clk 0:00:49]} 28... Kf8 {[%clk 0:01:32.4]} 29. g4 {[%clk 0:00:48.4]} 29...
Ra7 {[%clk 0:01:19]} 30. gxf5 {[%clk 0:00:41.4]} 30... exf5 {[%clk 0:01:19.4]}
31. Qf3 {[%clk 0:00:42.8]} 31... Be6 {[%clk 0:01:18.3]} 32. Nxf5 {[%clk
0:00:38.8]} 32... Bxf5 {[%clk 0:00:52.2]} 33. Qxf5 {[%clk 0:00:39.5]} 33... Qd7
{[%clk 0:00:52.3]} 34. e6 {[%clk 0:00:30.9]} 34... Qb7 {[%clk 0:00:48.2]} 35.
Rc6 {[%clk 0:00:31.2]} 35... Nb4 {[%clk 0:00:45.6]} 36. Bxb4+ {[%clk 0:00:31.6]}
36... axb4 {[%clk 0:00:46.9]} 37. g6 {[%clk 0:00:31.1]} 37... Rg8 {[%clk
0:00:22.4]} 38. Qf6 {[%clk 0:00:22.3]} 38... Qe7 {[%clk 0:00:20.2]} 39. Rc8+
{[%clk 0:00:22.3]} 39... Qe8 {[%clk 0:00:21]} 40. Qxf7+ {[%clk 0:00:21.8]} 40...
Rxf7 {[%clk 0:00:20.9]} 41. Rxf7# {[%clk 0:00:23.4]} 1-0

[Event "*** Titled Tuesday 3|2 Blitz"]
[Site "Chess.com"]
[Date "2017.03.07"]
[Round "1"]
[White "danyuffa"]
[Black "Rating-Schmating"]
[Result "0-1"]
[WhiteElo "2528"]
[BlackElo "2292"]
[TimeControl "180+2"]
[EndTime "13:08:49 PST"]
[Termination "Rating-Schmating won by resignation"]

1. d4 {[%clk 0:03:02]} 1... Nf6 {[%clk 0:03:00.3]} 2. c4 {[%clk 0:03:02.3]} 2...
e6 {[%clk 0:03:00.4]} 3. g3 {[%clk 0:03:03.4]} 3... c5 {[%clk 0:02:58.5]} 4. d5
{[%clk 0:03:03.9]} 4... d6 {[%clk 0:02:51.7]} 5. Nc3 {[%clk 0:03:01.8]} 5... b6
{[%clk 0:02:49.4]} 6. Bg2 {[%clk 0:03:01.3]} 6... Bb7 {[%clk 0:02:49.8]} 7. Nh3
{[%clk 0:02:57.5]} 7... Nbd7 {[%clk 0:02:49.9]} 8. O-O {[%clk 0:02:57.1]} 8...
exd5 {[%clk 0:02:46.2]} 9. Nf4 {[%clk 0:02:50.7]} 9... Be7 {[%clk 0:02:41.8]}
10. Nfxd5 {[%clk 0:02:48.9]} 10... Nxd5 {[%clk 0:02:42.4]} 11. Nxd5 {[%clk
0:02:44.2]} 11... Rb8 {[%clk 0:02:40]} 12. Bf4 {[%clk 0:02:41.1]} 12... Ne5
{[%clk 0:02:35.3]} 13. Qc2 {[%clk 0:02:38.6]} 13... Ng6 {[%clk 0:02:27.1]} 14.
Bd2 {[%clk 0:02:28.9]} 14... O-O {[%clk 0:02:27.5]} 15. Rad1 {[%clk 0:02:28.5]}
15... Qd7 {[%clk 0:02:22.9]} 16. h4 {[%clk 0:02:27.8]} 16... Rbd8 {[%clk
0:02:23.2]} 17. Bc3 {[%clk 0:02:22.4]} 17... Qe6 {[%clk 0:02:13.6]} 18. h5
{[%clk 0:02:19.9]} 18... Ne5 {[%clk 0:02:13.2]} 19. Nf4 {[%clk 0:01:52.4]} 19...
Qc8 {[%clk 0:02:03.3]} 20. Bxb7 {[%clk 0:01:51.4]} 20... Qxb7 {[%clk 0:02:04.3]}
21. Nd5 {[%clk 0:01:47]} 21... Nxc4 {[%clk 0:02:01.4]} 22. Bxg7 {[%clk
0:01:43.5]} 22... Kxg7 {[%clk 0:01:59.3]} 23. Qxc4 {[%clk 0:01:42.8]} 23... f5
{[%clk 0:01:56]} 24. Qf4 {[%clk 0:01:37.7]} 24... Qd7 {[%clk 0:01:51.4]} 25. Rd3
{[%clk 0:01:37.6]} 25... Bf6 {[%clk 0:01:50.2]} 26. Rfd1 {[%clk 0:01:26.6]}
26... h6 {[%clk 0:01:45.1]} 27. Qf3 {[%clk 0:01:18.7]} 27... Be5 {[%clk
0:01:41.3]} 28. b3 {[%clk 0:01:14]} 28... Qe6 {[%clk 0:01:41]} 29. e3 {[%clk
0:01:14]} 29... Rd7 {[%clk 0:01:40.1]} 30. Kg2 {[%clk 0:01:15.1]} 30... Rff7
{[%clk 0:01:41.2]} 31. a4 {[%clk 0:01:04.3]} 31... Kh7 {[%clk 0:01:39.8]} 32.
Qe2 {[%clk 0:00:52.2]} 32... Rg7 {[%clk 0:01:38.5]} 33. f4 {[%clk 0:00:52]}
33... Bf6 {[%clk 0:01:32.8]} 34. Qf3 {[%clk 0:00:51.9]} 34... Bh4 {[%clk
0:01:31.5]} 35. Kf1 {[%clk 0:00:21.8]} 35... Rxg3 {[%clk 0:01:30.7]} 36. Qh1
{[%clk 0:00:22.7]} 36... Bd8 {[%clk 0:01:23.7]} 37. Ke2 {[%clk 0:00:21.7]} 37...
Rdg7 {[%clk 0:01:22.7]} 38. Rf1 {[%clk 0:00:22.6]} 38... Rg2+ {[%clk 0:01:23.3]}
39. Rf2 {[%clk 0:00:23.8]} 39... Qe4 {[%clk 0:01:23.3]} 40. Qf1 {[%clk
0:00:20.4]} 40... Bh4 {[%clk 0:01:18]} 41. Rxg2 {[%clk 0:00:20.9]} 41... Rxg2+
{[%clk 0:01:18.6]} 42. Kd1 {[%clk 0:00:22.5]} 42... Ra2 {[%clk 0:01:17.3]} 43.
Nc3 {[%clk 0:00:16.3]} 43... Ra1+ {[%clk 0:01:18.3]} 44. Ke2 {[%clk 0:00:17.5]}
44... Qxd3+ {[%clk 0:01:18.2]} 45. Kxd3 {[%clk 0:00:18.8]} 45... Rxf1 {[%clk
0:01:19.5]} 46. Nb5 {[%clk 0:00:20.4]} 46... Rb1 {[%clk 0:01:19]} 47. Kc4 {[%clk
0:00:21.3]} 47... d5+ {[%clk 0:01:18.6]} 48. Kxd5 {[%clk 0:00:23.2]} 48... Rxb3
{[%clk 0:01:19.9]} 49. Nxa7 {[%clk 0:00:24.5]} 49... Rxe3 {[%clk 0:01:20.8]} 50.
Nc8 {[%clk 0:00:26.2]} 50... Ra3 {[%clk 0:01:21.4]} 51. Nxb6 {[%clk 0:00:26.4]}
51... Bd8 {[%clk 0:01:20]} 52. Nc4 {[%clk 0:00:23.3]} 52... Rxa4 {[%clk
0:01:20.9]} 53. Ne3 {[%clk 0:00:24]} 53... Rxf4 {[%clk 0:01:21.4]} 54. Kxc5
{[%clk 0:00:25.1]} 54... Re4 {[%clk 0:01:20]} 55. Nd5 {[%clk 0:00:25.6]} 55...
Re5 {[%clk 0:01:20.9]} 56. Kd4 {[%clk 0:00:27.2]} 56... Rxd5+ {[%clk 0:01:20.2]}
57. Kxd5 {[%clk 0:00:29.1]} 57... Bc7 {[%clk 0:01:21.2]} 58. Kd4 {[%clk
0:00:29.2]} 58... Kg7 {[%clk 0:01:22.6]} 59. Ke3 {[%clk 0:00:30.4]} 59... Kf6
{[%clk 0:01:24.2]} 0-1

[Event "*** Titled Tuesday 3|2 Blitz"]
[Site "Chess.com"]
[Date "2017.03.07"]
[Round "1"]
[White "Marreuh"]
[Black "Robin-Side"]
[Result "0-1"]
[WhiteElo "2078"]
[BlackElo "2458"]
[TimeControl "180+2"]
[EndTime "13:08:55 PST"]
[Termination "Robin-Side won by checkmate"]

1. e4 {[%clk 0:03:02]} 1... g6 {[%clk 0:03:02]} 2. d4 {[%clk 0:03:02.4]} 2...
Bg7 {[%clk 0:03:03]} 3. Nc3 {[%clk 0:03:02.5]} 3... e6 {[%clk 0:03:04.3]} 4. f4
{[%clk 0:02:54.3]} 4... Ne7 {[%clk 0:03:04.6]} 5. Nf3 {[%clk 0:02:52]} 5... d5
{[%clk 0:03:00.4]} 6. e5 {[%clk 0:02:50.2]} 6... O-O {[%clk 0:02:51.3]} 7. Bd3
{[%clk 0:02:39.4]} 7... c5 {[%clk 0:02:45.7]} 8. dxc5 {[%clk 0:02:39.4]} 8...
Nd7 {[%clk 0:02:45.3]} 9. Be3 {[%clk 0:02:36]} 9... Qa5 {[%clk 0:02:44.4]} 10.
Bb5 {[%clk 0:02:20.3]} 10... Nf5 {[%clk 0:02:23.8]} 11. Bf2 {[%clk 0:02:14.9]}
11... a6 {[%clk 0:02:12.9]} 12. Bxd7 {[%clk 0:02:11.9]} 12... Bxd7 {[%clk
0:02:14.8]} 13. O-O {[%clk 0:02:12.9]} 13... Qb4 {[%clk 0:01:58.4]} 14. g4
{[%clk 0:01:57.3]} 14... Nh6 {[%clk 0:01:55.5]} 15. g5 {[%clk 0:01:32.1]} 15...
Nf5 {[%clk 0:01:39.8]} 16. Qd2 {[%clk 0:01:31.7]} 16... Bc6 {[%clk 0:01:09.4]}
17. a3 {[%clk 0:01:32.4]} 17... Qa5 {[%clk 0:01:04]} 18. b4 {[%clk 0:01:33.3]}
18... Qc7 {[%clk 0:01:05.2]} 19. Nd4 {[%clk 0:01:25]} 19... Nxd4 {[%clk
0:00:52.8]} 20. Bxd4 {[%clk 0:01:22.6]} 20... h6 {[%clk 0:00:49]} 21. h4 {[%clk
0:01:21.6]} 21... Qd7 {[%clk 0:00:46.1]} 22. a4 {[%clk 0:01:18.9]} 22... Rfc8
{[%clk 0:00:40.3]} 23. Rfb1 {[%clk 0:01:19.7]} 23... Qe8 {[%clk 0:00:40.1]} 24.
Qd3 {[%clk 0:01:20.6]} 24... Bd7 {[%clk 0:00:40.7]} 25. Be3 {[%clk 0:01:08.7]}
25... Bf8 {[%clk 0:00:34.9]} 26. Qd4 {[%clk 0:01:00.4]} 26... a5 {[%clk
0:00:34.1]} 27. bxa5 {[%clk 0:00:53]} 27... Bxc5 {[%clk 0:00:33]} 28. Qd3 {[%clk
0:00:52.6]} 28... Bxe3+ {[%clk 0:00:22.7]} 29. Qxe3 {[%clk 0:00:53.7]} 29... Bc6
{[%clk 0:00:18.4]} 30. Ne2 {[%clk 0:00:50.3]} 30... d4 {[%clk 0:00:18.1]} 31.
Nxd4 {[%clk 0:00:50.5]} 31... Bd5 {[%clk 0:00:19.3]} 32. gxh6 {[%clk 0:00:46.3]}
32... Rxa5 {[%clk 0:00:20]} 33. Rb4 {[%clk 0:00:39.1]} 33... Qf8 {[%clk
0:00:19.1]} 34. f5 {[%clk 0:00:38.2]} 34... exf5 {[%clk 0:00:19]} 35. Qg5 {[%clk
0:00:33.4]} 35... Qxb4 {[%clk 0:00:16.9]} 36. Nxf5 {[%clk 0:00:26.8]} 36... Rxc2
{[%clk 0:00:10.6]} 37. Qd8+ {[%clk 0:00:12.6]} 37... Kh7 {[%clk 0:00:09.4]} 38.
Qf6 {[%clk 0:00:13]} 38... Qg4+ {[%clk 0:00:09.8]} 39. Kf1 {[%clk 0:00:13.6]}
39... Qe2+ {[%clk 0:00:10.2]} 40. Kg1 {[%clk 0:00:14.6]} 40... Qg2# {[%clk
0:00:12.1]} 0-1

[Event "*** Titled Tuesday 3|2 Blitz"]
[Site "Chess.com"]
[Date "2017.03.07"]
[Round "1"]
[White "AungTZ"]
[Black "GMMarcinDziuba"]
[Result "0-1"]
[WhiteElo "2053"]
[BlackElo "2451"]
[TimeControl "180+2"]
[EndTime "13:08:59 PST"]
[Termination "GMMarcinDziuba won by resignation"]

1. e4 {[%clk 0:03:02]} 1... c5 {[%clk 0:02:44.1]} 2. Nf3 {[%clk 0:03:01.2]} 2...
d6 {[%clk 0:02:45]} 3. d4 {[%clk 0:03:01.8]} 3... cxd4 {[%clk 0:02:46.1]} 4.
Nxd4 {[%clk 0:03:03.7]} 4... Nf6 {[%clk 0:02:47.7]} 5. Nc3 {[%clk 0:03:04.6]}
5... a6 {[%clk 0:02:49.3]} 6. g3 {[%clk 0:03:05.9]} 6... e5 {[%clk 0:02:44.5]}
7. Nb3 {[%clk 0:03:06.3]} 7... Be7 {[%clk 0:02:41.4]} 8. Bg2 {[%clk 0:03:07.4]}
8... O-O {[%clk 0:02:39.8]} 9. O-O {[%clk 0:03:08.2]} 9... b5 {[%clk 0:02:41]}
10. Bd2 {[%clk 0:03:08.8]} 10... Nbd7 {[%clk 0:02:36.9]} 11. Qe1 {[%clk
0:03:09.4]} 11... Bb7 {[%clk 0:02:35.9]} 12. Nd5 {[%clk 0:03:09.7]} 12... Bxd5
{[%clk 0:02:14.3]} 13. exd5 {[%clk 0:03:09.2]} 13... Nb6 {[%clk 0:02:15.5]} 14.
Rd1 {[%clk 0:02:48.2]} 14... Qd7 {[%clk 0:02:08.6]} 15. Na5 {[%clk 0:02:35.9]}
15... Rac8 {[%clk 0:02:04.5]} 16. Bb4 {[%clk 0:02:22.9]} 16... Nc4 {[%clk
0:01:57.6]} 17. Nxc4 {[%clk 0:02:15.1]} 17... Rxc4 {[%clk 0:01:58.1]} 18. c3
{[%clk 0:01:41.7]} 18... Re8 {[%clk 0:01:59.2]} 19. b3 {[%clk 0:01:33.5]} 19...
Rcc8 {[%clk 0:01:58.8]} 20. Ba5 {[%clk 0:01:34.7]} 20... Bd8 {[%clk 0:01:59.1]}
21. Bxd8 {[%clk 0:01:34.9]} 21... Qxd8 {[%clk 0:01:58.3]} 22. Rc1 {[%clk
0:01:36.4]} 22... Rc5 {[%clk 0:01:44.5]} 23. Qd2 {[%clk 0:01:31.8]} 23... Qc7
{[%clk 0:01:42]} 24. Rfd1 {[%clk 0:01:32.4]} 24... h6 {[%clk 0:01:40.4]} 25. b4
{[%clk 0:01:19.6]} 25... Rc4 {[%clk 0:01:39.5]} 26. Bf1 {[%clk 0:01:20.7]} 26...
Rg4 {[%clk 0:01:33.4]} 27. h3 {[%clk 0:01:19.9]} 27... Rg5 {[%clk 0:01:33.4]}
28. c4 {[%clk 0:01:18.2]} 28... bxc4 {[%clk 0:01:25.7]} 29. Rxc4 {[%clk
0:01:18.8]} 29... Qd7 {[%clk 0:01:22]} 30. Rc6 {[%clk 0:01:16.4]} 30... e4
{[%clk 0:01:20.6]} 31. Qf4 {[%clk 0:01:06.8]} 31... e3 {[%clk 0:01:17.3]} 32.
fxe3 {[%clk 0:01:07]} 32... Nxd5 {[%clk 0:00:54.5]} 33. Qxd6 {[%clk 0:00:57.1]}
33... Qxd6 {[%clk 0:00:53.6]} 34. Rxd6 {[%clk 0:00:57.1]} 34... Nxe3 {[%clk
0:00:41.5]} 35. Re1 {[%clk 0:00:54.9]} 35... Kf8 {[%clk 0:00:12.9]} 36. g4
{[%clk 0:00:26]} 36... Rge5 {[%clk 0:00:10.2]} 37. Bxa6 {[%clk 0:00:24.7]} 37...
Nxg4 {[%clk 0:00:09.7]} 38. Rxe5 {[%clk 0:00:24.2]} 38... Nxe5 {[%clk
0:00:11.6]} 39. Bf1 {[%clk 0:00:21.3]} 39... Ra8 {[%clk 0:00:11.1]} 40. Rd2
{[%clk 0:00:21.2]} 40... Nf3+ {[%clk 0:00:10.1]} 41. Kf2 {[%clk 0:00:22.3]}
41... Nxd2 {[%clk 0:00:12]} 42. Bd3 {[%clk 0:00:22.5]} 42... Rxa2 {[%clk
0:00:11.7]} 43. Ke3 {[%clk 0:00:23.3]} 43... Rb2 {[%clk 0:00:13.1]} 44. b5
{[%clk 0:00:23.5]} 44... Nb3 {[%clk 0:00:14.7]} 0-1

[Event "*** Titled Tuesday 3|2 Blitz"]
[Site "Chess.com"]
[Date "2017.03.07"]
[Round "1"]
[White "GMMelik"]
[Black "FlameOak4464"]
[Result "1-0"]
[WhiteElo "2408"]
[BlackElo "1799"]
[TimeControl "180+2"]
[EndTime "13:09:19 PST"]
[Termination "GMMelik won by resignation"]

1. d4 {[%clk 0:03:02]} 1... d5 {[%clk 0:03:00.8]} 2. Nc3 {[%clk 0:03:02.3]} 2...
Nf6 {[%clk 0:03:00.2]} 3. Bg5 {[%clk 0:03:01.6]} 3... Nbd7 {[%clk 0:02:59.5]} 4.
f3 {[%clk 0:02:54.7]} 4... c5 {[%clk 0:02:58.7]} 5. dxc5 {[%clk 0:02:52.5]} 5...
e6 {[%clk 0:02:58]} 6. b4 {[%clk 0:02:30.7]} 6... a5 {[%clk 0:02:53.2]} 7. a3
{[%clk 0:02:28.9]} 7... Qc7 {[%clk 0:02:29.2]} 8. Nh3 {[%clk 0:02:03.2]} 8... b6
{[%clk 0:02:07.2]} 9. Nb5 {[%clk 0:01:59.3]} 9... Qc6 {[%clk 0:02:04.2]} 10. Nd4
{[%clk 0:01:57.1]} 10... Qa4 {[%clk 0:01:59.2]} 11. c6 {[%clk 0:01:48.6]} 11...
Nb8 {[%clk 0:01:53.9]} 12. e3 {[%clk 0:01:31.4]} 12... Ba6 {[%clk 0:01:21.8]}
13. b5 {[%clk 0:01:22.9]} 13... Bc8 {[%clk 0:01:20.2]} 14. c4 {[%clk 0:01:21]}
14... Qxd1+ {[%clk 0:01:09.6]} 15. Kxd1 {[%clk 0:01:20]} 15... Be7 {[%clk
0:01:03]} 16. Kc2 {[%clk 0:01:07.6]} 16... dxc4 {[%clk 0:00:58.1]} 17. Bxc4
{[%clk 0:01:06]} 17... e5 {[%clk 0:00:59.3]} 18. Ne2 {[%clk 0:01:00.7]} 18...
Bf5+ {[%clk 0:00:59.9]} 19. e4 {[%clk 0:00:58]} 19... Bg6 {[%clk 0:00:56.5]} 20.
Bxf6 {[%clk 0:00:55.9]} 20... Bxf6 {[%clk 0:00:56.8]} 21. Rhd1 {[%clk
0:00:55.3]} 21... Ra7 {[%clk 0:00:41.2]} 22. Nc3 {[%clk 0:00:39.9]} 22... Be7
{[%clk 0:00:36.7]} 23. Nd5 {[%clk 0:00:40.7]} 23... Bc5 {[%clk 0:00:37.2]} 24.
Rd2 {[%clk 0:00:41.4]} 24... O-O {[%clk 0:00:36]} 25. Nf2 {[%clk 0:00:39.6]}
25... Kh8 {[%clk 0:00:34]} 26. Ng4 {[%clk 0:00:39.4]} 26... Re8 {[%clk
0:00:32.1]} 27. Rd3 {[%clk 0:00:39.3]} 27... f5 {[%clk 0:00:32.4]} 28. exf5
{[%clk 0:00:33.6]} 28... Bxf5 {[%clk 0:00:33.2]} 29. Re1 {[%clk 0:00:34.2]}
29... Bxd3+ {[%clk 0:00:33.2]} 30. Bxd3 {[%clk 0:00:34.7]} 30... Bxa3 {[%clk
0:00:32.7]} 31. Nxb6 {[%clk 0:00:34.4]} 31... Rae7 {[%clk 0:00:30.2]} 32. Nc4
{[%clk 0:00:33.4]} 32... Bb4 {[%clk 0:00:30.9]} 33. Rxe5 {[%clk 0:00:34]} 33...
a4 {[%clk 0:00:28.3]} 34. Rxe7 {[%clk 0:00:30.2]} 34... Rxe7 {[%clk 0:00:29.1]}
35. Nge5 {[%clk 0:00:32.1]} 35... a3 {[%clk 0:00:28.8]} 36. Kb3 {[%clk
0:00:33.4]} 36... Kg8 {[%clk 0:00:26.9]} 37. Bb1 {[%clk 0:00:31.9]} 37... a2
{[%clk 0:00:25.7]} 38. Bxa2 {[%clk 0:00:32.1]} 38... Be1 {[%clk 0:00:26.2]} 39.
b6 {[%clk 0:00:31.4]} 39... Nxc6 {[%clk 0:00:25.9]} 40. Nxc6 {[%clk 0:00:32]}
40... Bf2 {[%clk 0:00:25.4]} 41. Nxe7+ {[%clk 0:00:30.9]} 41... Kf7 {[%clk
0:00:24]} 42. Nd5 {[%clk 0:00:31.6]} 42... Ke6 {[%clk 0:00:25]} 43. Nce3 {[%clk
0:00:30.3]} 43... Kd6 {[%clk 0:00:24.7]} 44. Kc4 {[%clk 0:00:30.8]} 44... Kc6
{[%clk 0:00:24.9]} 45. Bb3 {[%clk 0:00:31.9]} 45... Bxe3 {[%clk 0:00:25.5]} 46.
Ba4+ {[%clk 0:00:32]} 46... Kb7 {[%clk 0:00:25.7]} 47. Nxe3 {[%clk 0:00:33.2]}
47... Kxb6 {[%clk 0:00:26.8]} 48. Kd5 {[%clk 0:00:33.8]} 48... Kc7 {[%clk
0:00:28]} 49. Ke6 {[%clk 0:00:35]} 49... Kd8 {[%clk 0:00:29.3]} 50. Kf7 {[%clk
0:00:36.2]} 50... g5 {[%clk 0:00:30.4]} 51. Kg7 {[%clk 0:00:37]} 51... h5 {[%clk
0:00:31.3]} 52. Kf6 {[%clk 0:00:37.8]} 52... g4 {[%clk 0:00:31.2]} 53. fxg4
{[%clk 0:00:38.8]} 53... hxg4 {[%clk 0:00:32.3]} 54. Nxg4 {[%clk 0:00:40.7]} 1-0

[Event "*** Titled Tuesday 3|2 Blitz"]
[Site "Chess.com"]
[Date "2017.03.07"]
[Round "1"]
[White "alexsuper1987"]
[Black "A-Fier"]
[Result "0-1"]
[WhiteElo "2203"]
[BlackElo "2510"]
[TimeControl "180+2"]
[EndTime "13:09:26 PST"]
[Termination "A-Fier won by checkmate"]

1. e4 {[%clk 0:03:02]} 1... c5 {[%clk 0:03:00.5]} 2. c3 {[%clk 0:03:02.8]} 2...
d5 {[%clk 0:03:00.3]} 3. exd5 {[%clk 0:03:03]} 3... Qxd5 {[%clk 0:03:02.2]} 4.
d4 {[%clk 0:03:04.9]} 4... Nf6 {[%clk 0:03:03.4]} 5. Nf3 {[%clk 0:03:06.4]} 5...
e6 {[%clk 0:03:04.8]} 6. Be2 {[%clk 0:03:07.9]} 6... Be7 {[%clk 0:03:02]} 7. O-O
{[%clk 0:03:08.6]} 7... O-O {[%clk 0:03:01.7]} 8. c4 {[%clk 0:02:54.3]} 8... Qd8
{[%clk 0:02:55.3]} 9. dxc5 {[%clk 0:02:52.7]} 9... Bxc5 {[%clk 0:02:57.2]} 10.
a3 {[%clk 0:02:53.1]} 10... b6 {[%clk 0:02:54.7]} 11. b4 {[%clk 0:02:52.9]}
11... Be7 {[%clk 0:02:55.9]} 12. Bb2 {[%clk 0:02:52.2]} 12... Bb7 {[%clk
0:02:57.1]} 13. Nc3 {[%clk 0:02:52.4]} 13... Nbd7 {[%clk 0:02:58]} 14. Nb5
{[%clk 0:02:48.9]} 14... Ne4 {[%clk 0:02:53.2]} 15. Bd3 {[%clk 0:02:26.6]} 15...
a6 {[%clk 0:02:48.4]} 16. Bxe4 {[%clk 0:02:24.4]} 16... Bxe4 {[%clk 0:02:50.3]}
17. Nd6 {[%clk 0:02:25.1]} 17... Bxf3 {[%clk 0:02:51.2]} 18. gxf3 {[%clk
0:02:20.9]} 18... Bf6 {[%clk 0:02:50.6]} 19. Bxf6 {[%clk 0:02:16.4]} 19... Nxf6
{[%clk 0:02:49]} 20. Ne4 {[%clk 0:02:17]} 20... Nd7 {[%clk 0:02:45.1]} 21. Qd6
{[%clk 0:02:15.4]} 21... Qc8 {[%clk 0:02:36.7]} 22. Rfd1 {[%clk 0:02:09.6]}
22... Ra7 {[%clk 0:02:37.7]} 23. Rac1 {[%clk 0:02:07]} 23... Rc7 {[%clk
0:02:38.2]} 24. c5 {[%clk 0:01:53.3]} 24... bxc5 {[%clk 0:02:38.4]} 25. Nxc5
{[%clk 0:01:46.9]} 25... Nb8 {[%clk 0:02:34.5]} 26. Nb3 {[%clk 0:01:23.6]} 26...
Rxc1 {[%clk 0:02:33.3]} 27. Rxc1 {[%clk 0:01:25.5]} 27... Qb7 {[%clk 0:02:34.5]}
28. Kg2 {[%clk 0:01:22]} 28... h6 {[%clk 0:02:34.4]} 29. Na5 {[%clk 0:01:16.8]}
29... Qb5 {[%clk 0:02:33.6]} 30. Rc5 {[%clk 0:00:47]} 30... Qa4 {[%clk 0:02:32]}
31. Nc4 {[%clk 0:00:41.2]} 31... Qb3 {[%clk 0:01:51.3]} 32. Qe7 {[%clk 0:00:35]}
32... Qd1 {[%clk 0:01:39.2]} 33. Rc7 {[%clk 0:00:30.8]} 33... Qd5 {[%clk
0:01:37.6]} 34. Nd6 {[%clk 0:00:30.6]} 34... Qg5+ {[%clk 0:01:23.3]} 35. Qxg5
{[%clk 0:00:31.4]} 35... hxg5 {[%clk 0:01:25.2]} 36. Rb7 {[%clk 0:00:26.5]}
36... f6 {[%clk 0:01:24.5]} 37. a4 {[%clk 0:00:25.8]} 37... Rd8 {[%clk
0:01:25.5]} 38. b5 {[%clk 0:00:22.6]} 38... axb5 {[%clk 0:01:25.8]} 39. axb5
{[%clk 0:00:21.8]} 39... Nd7 {[%clk 0:01:27.3]} 40. Rc7 {[%clk 0:00:20.1]} 40...
Nb6 {[%clk 0:01:28.3]} 41. Nb7 {[%clk 0:00:20.4]} 41... Rd5 {[%clk 0:01:24.2]}
42. Rc5 {[%clk 0:00:19.7]} 42... Rd7 {[%clk 0:01:23]} 43. Na5 {[%clk 0:00:19.2]}
43... Nd5 {[%clk 0:01:23]} 44. Rc6 {[%clk 0:00:18.4]} 44... Ra7 {[%clk
0:01:16.3]} 45. Nc4 {[%clk 0:00:18.3]} 45... Ra4 {[%clk 0:01:14]} 46. b6 {[%clk
0:00:17.4]} 46... Rb4 {[%clk 0:01:15.2]} 47. Kg3 {[%clk 0:00:15.3]} 47... Kh7
{[%clk 0:01:15.3]} 48. Ne3 {[%clk 0:00:15.4]} 48... Nf4 {[%clk 0:01:15.4]} 49.
Ng2 {[%clk 0:00:15.1]} 49... Ne2+ {[%clk 0:01:16.1]} 50. Kh3 {[%clk 0:00:16.2]}
50... Kg6 {[%clk 0:01:13.1]} 51. Rxe6 {[%clk 0:00:15.9]} 51... Nd4 {[%clk
0:01:10]} 52. Re4 {[%clk 0:00:16]} 52... f5 {[%clk 0:01:09.7]} 53. Re5 {[%clk
0:00:13.3]} 53... Nxf3 {[%clk 0:01:09.4]} 54. Re6+ {[%clk 0:00:13.5]} 54... Kh5
{[%clk 0:01:10.8]} 55. Kg3 {[%clk 0:00:12.4]} 55... Ng1 {[%clk 0:01:11.5]} 56.
h4 {[%clk 0:00:13.1]} 56... f4+ {[%clk 0:01:11.1]} 57. Kh2 {[%clk 0:00:14.2]}
57... Nf3+ {[%clk 0:01:12.5]} 58. Kh1 {[%clk 0:00:11.3]} 58... Rb1+ {[%clk
0:01:13.1]} 59. Ne1 {[%clk 0:00:12.6]} 59... Nxe1 {[%clk 0:01:14.2]} 60. b7
{[%clk 0:00:13.6]} 60... Nf3+ {[%clk 0:01:13.8]} 61. Kg2 {[%clk 0:00:15.1]}
61... Kg4 {[%clk 0:01:15]} 62. Rg6 {[%clk 0:00:15.2]} 62... Rg1# {[%clk
0:01:15.8]} 0-1